[Event "Late-Titled-Tuesday-Blitz-June-25-2024"]
[Site "Chess.com"]
[Date "2024.06.25"]
[Round "11"]
[White "djano"]
[Black "maracayo"]
[Result "1-0"]
[WhiteElo "2585"]
[BlackElo "2408"]
[TimeControl "180+1"]
[EndTime "16:06:56 PDT"]
[Termination "djano won on time"]

1. e4 {[%clk 0:03:00.9]} 1... d6 {[%clk 0:02:59.2]} 2. Nc3 {[%clk 0:02:59.6]}
2... Nf6 {[%clk 0:02:59.2]} 3. f4 {[%clk 0:03:00]} 3... c6 {[%clk 0:02:59.2]} 4.
Nf3 {[%clk 0:03:00.3]} 4... Qa5 {[%clk 0:02:56.5]} 5. Bc4 {[%clk 0:02:54.7]}
5... d5 {[%clk 0:02:55.3]} 6. exd5 {[%clk 0:02:53.9]} 6... cxd5 {[%clk
0:02:54.5]} 7. Bb3 {[%clk 0:02:53.7]} 7... Nc6 {[%clk 0:02:50.5]} 8. O-O {[%clk
0:02:53]} 8... Bg4 {[%clk 0:02:48.3]} 9. h3 {[%clk 0:02:49.8]} 9... Qc5+ {[%clk
0:02:25.2]} 10. Kh1 {[%clk 0:02:46.4]} 10... h5 {[%clk 0:02:17.6]} 11. d4 {[%clk
0:02:37.9]} 11... Bxf3 {[%clk 0:02:02.5]} 12. Qxf3 {[%clk 0:02:27.8]} 12... Nxd4
{[%clk 0:02:00.5]} 13. Qd3 {[%clk 0:02:11.5]} 13... Nxb3 {[%clk 0:01:57.8]} 14.
axb3 {[%clk 0:02:12.4]} 14... e6 {[%clk 0:01:56.4]} 15. f5 {[%clk 0:02:08.3]}
15... e5 {[%clk 0:01:37.1]} 16. Bg5 {[%clk 0:02:07.1]} 16... O-O-O {[%clk
0:01:36.3]} 17. b4 {[%clk 0:01:53.6]} 17... Qc4 {[%clk 0:01:19]} 18. Qxc4+
{[%clk 0:01:12.5]} 18... dxc4 {[%clk 0:01:18.3]} 19. Rxa7 {[%clk 0:01:13.2]}
19... Bxb4 {[%clk 0:01:10.2]} 20. Bxf6 {[%clk 0:00:59.1]} 20... gxf6 {[%clk
0:01:08.8]} 21. Ne4 {[%clk 0:00:59.6]} 21... Be7 {[%clk 0:01:03.2]} 22. c3
{[%clk 0:00:51.8]} 22... Kb8 {[%clk 0:00:59]} 23. Ra4 {[%clk 0:00:47.7]} 23...
Rc8 {[%clk 0:00:53]} 24. Rfa1 {[%clk 0:00:46.9]} 24... Rhd8 {[%clk 0:00:48.5]}
25. Kh2 {[%clk 0:00:44.7]} 25... h4 {[%clk 0:00:47]} 26. R1a2 {[%clk 0:00:41.3]}
26... Rd3 {[%clk 0:00:44.6]} 27. Ra8+ {[%clk 0:00:38.5]} 27... Kc7 {[%clk
0:00:44.1]} 28. R8a4 {[%clk 0:00:38.1]} 28... Kd8 {[%clk 0:00:40.4]} 29. Ra7
{[%clk 0:00:35.5]} 29... Re3 {[%clk 0:00:38.1]} 30. Nf2 {[%clk 0:00:28.6]} 30...
Rc7 {[%clk 0:00:33.7]} 31. Ng4 {[%clk 0:00:25.7]} 31... Re2 {[%clk 0:00:32.9]}
32. Ra1 {[%clk 0:00:20.9]} 32... Bc5 {[%clk 0:00:26.7]} 33. Rd1+ {[%clk
0:00:19.4]} 33... Ke7 {[%clk 0:00:26.7]} 34. Ra8 {[%clk 0:00:16.6]} 34... Bf2
{[%clk 0:00:16.5]} 35. Nh6 {[%clk 0:00:09.1]} 35... Bg3+ {[%clk 0:00:15.7]} 36.
Kg1 {[%clk 0:00:09.4]} 36... Re1+ {[%clk 0:00:09.4]} 37. Rxe1 {[%clk 0:00:09.8]}
37... Bxe1 {[%clk 0:00:10]} 38. Kf1 {[%clk 0:00:10.5]} 38... Bg3 {[%clk
0:00:09.1]} 39. Ng8+ {[%clk 0:00:11.1]} 39... Kd6 {[%clk 0:00:08.8]} 40. Nxf6
{[%clk 0:00:12]} 40... Kc6 {[%clk 0:00:07.8]} 41. Ne4 {[%clk 0:00:11.9]} 41...
Rd7 {[%clk 0:00:07.9]} 42. Ke2 {[%clk 0:00:11.6]} 42... Rd3 {[%clk 0:00:06.6]}
43. Rd8 {[%clk 0:00:10.1]} 43... Rd4 {[%clk 0:00:03.8]} 44. cxd4 {[%clk
0:00:08]} 1-0

[Event "Late-Titled-Tuesday-Blitz-June-25-2024"]
[Site "Chess.com"]
[Date "2024.06.25"]
[Round "11"]
[White "maximnovik"]
[Black "KNVB"]
[Result "1-0"]
[WhiteElo "2530"]
[BlackElo "2662"]
[TimeControl "180+1"]
[EndTime "16:06:58 PDT"]
[Termination "maximnovik won by checkmate"]

1. e4 {[%clk 0:03:00]} 1... b6 {[%clk 0:02:51.4]} 2. d4 {[%clk 0:02:59.4]} 2...
Bb7 {[%clk 0:02:40.6]} 3. Nc3 {[%clk 0:02:59.3]} 3... e6 {[%clk 0:02:40.8]} 4.
a3 {[%clk 0:02:59.3]} 4... g6 {[%clk 0:02:40.6]} 5. Nf3 {[%clk 0:02:57.9]} 5...
Bg7 {[%clk 0:02:41.1]} 6. Bd3 {[%clk 0:02:58.2]} 6... d6 {[%clk 0:02:41.7]} 7.
O-O {[%clk 0:02:58.3]} 7... a6 {[%clk 0:02:41.8]} 8. Re1 {[%clk 0:02:58.5]} 8...
h6 {[%clk 0:02:42.5]} 9. Ne2 {[%clk 0:02:57.3]} 9... Nd7 {[%clk 0:02:41.7]} 10.
Ng3 {[%clk 0:02:57.8]} 10... Ne7 {[%clk 0:02:41.7]} 11. c3 {[%clk 0:02:57.8]}
11... c5 {[%clk 0:02:41.8]} 12. Be3 {[%clk 0:02:56.5]} 12... O-O {[%clk
0:02:22.6]} 13. Qd2 {[%clk 0:02:56.4]} 13... Kh7 {[%clk 0:02:22.8]} 14. Rad1
{[%clk 0:02:51.6]} 14... Qc7 {[%clk 0:02:19.9]} 15. h4 {[%clk 0:02:44.7]} 15...
Rad8 {[%clk 0:02:15.7]} 16. h5 {[%clk 0:02:44.7]} 16... e5 {[%clk 0:02:16.4]}
17. d5 {[%clk 0:02:40]} 17... c4 {[%clk 0:02:16.1]} 18. Bc2 {[%clk 0:02:36.2]}
18... Nf6 {[%clk 0:02:04.3]} 19. Nh2 {[%clk 0:02:32.5]} 19... g5 {[%clk
0:01:52.5]} 20. Qe2 {[%clk 0:02:27.1]} 20... Bc8 {[%clk 0:01:48.8]} 21. f3
{[%clk 0:02:15.9]} 21... Kh8 {[%clk 0:01:38.4]} 22. a4 {[%clk 0:02:12.8]} 22...
Bd7 {[%clk 0:01:32.9]} 23. Ng4 {[%clk 0:02:07.7]} 23... Rb8 {[%clk 0:01:17.2]}
24. Ra1 {[%clk 0:02:04.1]} 24... Rfc8 {[%clk 0:01:10.5]} 25. Bd2 {[%clk
0:02:00.6]} 25... Qd8 {[%clk 0:00:22.8]} 26. Ne3 {[%clk 0:01:59.7]} 26... Qc7
{[%clk 0:00:12]} 27. Qf1 {[%clk 0:01:54.3]} 27... Rb7 {[%clk 0:00:08.8]} 28. Bd1
{[%clk 0:01:52.8]} 28... Bf8 {[%clk 0:00:08.1]} 29. Be2 {[%clk 0:01:52.7]} 29...
b5 {[%clk 0:00:08.8]} 30. axb5 {[%clk 0:01:49.3]} 30... Bxb5 {[%clk 0:00:09.4]}
31. Ra2 {[%clk 0:01:50]} 31... Ne8 {[%clk 0:00:06.6]} 32. Rea1 {[%clk 0:01:49]}
32... Rb6 {[%clk 0:00:02.5]} 33. Kh1 {[%clk 0:01:39.5]} 33... Ng7 {[%clk
0:00:02.6]} 34. Nc2 {[%clk 0:01:38.2]} 34... f6 {[%clk 0:00:02.1]} 35. Nb4
{[%clk 0:01:36.8]} 35... Qb7 {[%clk 0:00:02.6]} 36. Be3 {[%clk 0:01:36.2]} 36...
Kg8 {[%clk 0:00:01.5]} 37. Qf2 {[%clk 0:01:36.3]} 37... Rb8 {[%clk 0:00:01.5]}
38. Bxb6 {[%clk 0:01:35.9]} 38... Qxb6 {[%clk 0:00:02.4]} 39. Qxb6 {[%clk
0:01:36.1]} 39... Rxb6 {[%clk 0:00:03.3]} 40. Nxa6 {[%clk 0:01:26.7]} 40... f5
{[%clk 0:00:03.1]} 41. Nb4 {[%clk 0:01:20.1]} 41... f4 {[%clk 0:00:03]} 42. Nf1
{[%clk 0:01:18]} 42... Nxh5 {[%clk 0:00:03.3]} 43. Ra8 {[%clk 0:01:16.2]} 43...
Kf7 {[%clk 0:00:01.4]} 44. R1a7 {[%clk 0:01:10.9]} 44... Nf6 {[%clk 0:00:01.5]}
45. Nd2 {[%clk 0:01:09.4]} 45... g4 {[%clk 0:00:01]} 46. Bxc4 {[%clk 0:01:09.1]}
46... gxf3 {[%clk 0:00:01]} 47. gxf3 {[%clk 0:01:09.3]} 47... h5 {[%clk
0:00:01]} 48. Bxb5 {[%clk 0:01:08.9]} 48... Rxb5 {[%clk 0:00:01.9]} 49. Nc4
{[%clk 0:01:09.4]} 49... Kg6 {[%clk 0:00:01.3]} 50. Rxf8 {[%clk 0:01:07.5]}
50... h4 {[%clk 0:00:01.5]} 51. Rxe7 {[%clk 0:01:06.5]} 51... Nh5 {[%clk
0:00:02.3]} 52. Rg8+ {[%clk 0:01:00.5]} 52... Kh6 {[%clk 0:00:02.2]} 53. Rg4
{[%clk 0:00:57.4]} 53... Ng3+ {[%clk 0:00:02.3]} 54. Kg2 {[%clk 0:00:57.9]}
54... Rb8 {[%clk 0:00:01.9]} 55. Re6+ {[%clk 0:00:57]} 55... Kh5 {[%clk
0:00:01.6]} 56. Rxd6 {[%clk 0:00:56.9]} 56... Ra8 {[%clk 0:00:01.7]} 57. Nxe5
{[%clk 0:00:56.4]} 57... Ra1 {[%clk 0:00:01.4]} 58. Nf7 {[%clk 0:00:56.4]} 58...
h3+ {[%clk 0:00:01.9]} 59. Kxh3 {[%clk 0:00:54]} 59... Rh1+ {[%clk 0:00:01.9]}
60. Kg2 {[%clk 0:00:54.3]} 60... Rh2+ {[%clk 0:00:01.4]} 61. Kxh2 {[%clk
0:00:52.4]} 61... Nf1+ {[%clk 0:00:02]} 62. Kg1 {[%clk 0:00:52.1]} 62... Ne3
{[%clk 0:00:01.7]} 63. Rg5+ {[%clk 0:00:52]} 63... Kh4 {[%clk 0:00:01.8]} 64.
Rh6# {[%clk 0:00:52]} 1-0

[Event "Late-Titled-Tuesday-Blitz-June-25-2024"]
[Site "Chess.com"]
[Date "2024.06.25"]
[Round "11"]
[White "enriquebutti"]
[Black "LidongW"]
[Result "0-1"]
[WhiteElo "2189"]
[BlackElo "2336"]
[TimeControl "180+1"]
[EndTime "16:06:58 PDT"]
[Termination "LidongW won by resignation"]

1. d4 {[%clk 0:02:59.7]} 1... Nf6 {[%clk 0:02:59.9]} 2. Nf3 {[%clk 0:02:58.9]}
2... g6 {[%clk 0:02:59.9]} 3. c4 {[%clk 0:02:54.3]} 3... c5 {[%clk 0:02:58.8]}
4. Nc3 {[%clk 0:02:52.7]} 4... Bg7 {[%clk 0:02:58.6]} 5. d5 {[%clk 0:02:48.3]}
5... d6 {[%clk 0:02:58.5]} 6. Nd2 {[%clk 0:02:46.3]} 6... O-O {[%clk 0:02:58.8]}
7. e4 {[%clk 0:02:45.8]} 7... e6 {[%clk 0:02:58.2]} 8. Be2 {[%clk 0:02:44.1]}
8... exd5 {[%clk 0:02:57.4]} 9. cxd5 {[%clk 0:02:43.6]} 9... Re8 {[%clk
0:02:57.8]} 10. f3 {[%clk 0:02:11.8]} 10... Na6 {[%clk 0:02:48.8]} 11. O-O
{[%clk 0:02:09.7]} 11... Nc7 {[%clk 0:02:48.3]} 12. a4 {[%clk 0:02:06.7]} 12...
b6 {[%clk 0:02:47.5]} 13. Nc4 {[%clk 0:02:00.3]} 13... Rb8 {[%clk 0:02:46.7]}
14. Nb5 {[%clk 0:01:55.6]} 14... Nxb5 {[%clk 0:02:38.4]} 15. axb5 {[%clk
0:01:55.1]} 15... Rb7 {[%clk 0:02:30.7]} 16. Re1 {[%clk 0:01:45.3]} 16... Bf8
{[%clk 0:02:06.7]} 17. Bd2 {[%clk 0:01:34.7]} 17... Bd7 {[%clk 0:02:02.8]} 18.
Qb3 {[%clk 0:01:32.7]} 18... Nh5 {[%clk 0:01:22.1]} 19. g4 {[%clk 0:01:27.8]}
19... Nf6 {[%clk 0:01:16.7]} 20. Bf4 {[%clk 0:01:26.2]} 20... Bc8 {[%clk
0:01:13.9]} 21. Ra2 {[%clk 0:01:18.7]} 21... Qd7 {[%clk 0:01:12.2]} 22. Bd2
{[%clk 0:01:08.5]} 22... Bg7 {[%clk 0:01:05.2]} 23. Bc3 {[%clk 0:01:03.3]} 23...
h5 {[%clk 0:01:03.3]} 24. h3 {[%clk 0:01:00.7]} 24... Qe7 {[%clk 0:00:57.4]} 25.
Qd1 {[%clk 0:00:40.2]} 25... Nh7 {[%clk 0:00:54.9]} 26. Kg2 {[%clk 0:00:38.5]}
26... Qh4 {[%clk 0:00:51]} 27. Rh1 {[%clk 0:00:35.7]} 27... Rd8 {[%clk
0:00:43.1]} 28. Bxg7 {[%clk 0:00:31.8]} 28... Kxg7 {[%clk 0:00:43]} 29. Qe1
{[%clk 0:00:31.1]} 29... Qf6 {[%clk 0:00:40.5]} 30. Qg3 {[%clk 0:00:29.2]} 30...
h4 {[%clk 0:00:39.8]} 31. Qh2 {[%clk 0:00:27]} 31... g5 {[%clk 0:00:38.6]} 32.
Rd1 {[%clk 0:00:23.6]} 32... Re7 {[%clk 0:00:38.3]} 33. Rda1 {[%clk 0:00:21.7]}
33... Rdd7 {[%clk 0:00:36.9]} 34. Ne3 {[%clk 0:00:19.1]} 34... Rc7 {[%clk
0:00:34.7]} 35. Bd3 {[%clk 0:00:15.1]} 35... Nf8 {[%clk 0:00:34.3]} 36. Nc4
{[%clk 0:00:10.5]} 36... Red7 {[%clk 0:00:32.8]} 37. Ne3 {[%clk 0:00:09.3]}
37... Re7 {[%clk 0:00:32.4]} 38. Nc4 {[%clk 0:00:08.9]} 38... Ng6 {[%clk
0:00:29.8]} 39. Qxd6 {[%clk 0:00:05.8]} 39... Nf4+ {[%clk 0:00:27.2]} 40. Kf1
{[%clk 0:00:04.6]} 40... Qxd6 {[%clk 0:00:26.9]} 41. Nxd6 {[%clk 0:00:04.2]}
41... Nxd3 {[%clk 0:00:27.6]} 42. Nxc8 {[%clk 0:00:03.7]} 42... Rxc8 {[%clk
0:00:28.5]} 43. Rxa7 {[%clk 0:00:03.9]} 43... Rxa7 {[%clk 0:00:27.6]} 44. Rxa7
{[%clk 0:00:04.8]} 44... Nxb2 {[%clk 0:00:28.1]} 45. d6 {[%clk 0:00:04.3]} 45...
Nc4 {[%clk 0:00:21.7]} 46. d7 {[%clk 0:00:03.7]} 46... Rd8 {[%clk 0:00:22.1]}
0-1

[Event "Late-Titled-Tuesday-Blitz-June-25-2024"]
[Site "Chess.com"]
[Date "2024.06.25"]
[Round "11"]
[White "SaraBlackPanther"]
[Black "rasmussvane"]
[Result "1-0"]
[WhiteElo "2769"]
[BlackElo "2952"]
[TimeControl "180+1"]
[EndTime "16:06:59 PDT"]
[Termination "SaraBlackPanther won on time"]

1. c4 {[%clk 0:03:00.9]} 1... e6 {[%clk 0:02:59.9]} 2. Nf3 {[%clk 0:02:57.8]}
2... d5 {[%clk 0:03:00.8]} 3. g3 {[%clk 0:02:58.2]} 3... Nf6 {[%clk 0:03:00.4]}
4. Bg2 {[%clk 0:02:58.8]} 4... Be7 {[%clk 0:03:00.9]} 5. O-O {[%clk 0:02:59]}
5... O-O {[%clk 0:03:01.5]} 6. b3 {[%clk 0:02:59.1]} 6... d4 {[%clk 0:02:58.8]}
7. e3 {[%clk 0:02:57.6]} 7... c5 {[%clk 0:02:58.1]} 8. Ne5 {[%clk 0:02:54.6]}
8... Qc7 {[%clk 0:02:57.1]} 9. f4 {[%clk 0:02:52.2]} 9... Nfd7 {[%clk
0:02:50.4]} 10. Nd3 {[%clk 0:02:50.6]} 10... Nc6 {[%clk 0:02:46.3]} 11. Na3
{[%clk 0:02:47]} 11... a6 {[%clk 0:02:46.1]} 12. e4 {[%clk 0:02:44]} 12... Rb8
{[%clk 0:02:45.6]} 13. e5 {[%clk 0:02:29.6]} 13... b6 {[%clk 0:02:27.3]} 14. Nf2
{[%clk 0:02:28.4]} 14... Bb7 {[%clk 0:02:20.4]} 15. d3 {[%clk 0:02:17.7]} 15...
Rbe8 {[%clk 0:02:15.6]} 16. Nc2 {[%clk 0:02:11.4]} 16... f6 {[%clk 0:02:12.5]}
17. exf6 {[%clk 0:02:12.3]} 17... Nxf6 {[%clk 0:02:12.9]} 18. Ne1 {[%clk
0:02:06.2]} 18... Bd6 {[%clk 0:01:47.8]} 19. Ne4 {[%clk 0:01:58.1]} 19... Nxe4
{[%clk 0:01:44.9]} 20. Bxe4 {[%clk 0:01:54.8]} 20... Nb8 {[%clk 0:01:38.4]} 21.
Qf3 {[%clk 0:01:38.6]} 21... Bxe4 {[%clk 0:01:37.5]} 22. dxe4 {[%clk 0:01:29]}
22... b5 {[%clk 0:01:36.7]} 23. Nd3 {[%clk 0:01:21.3]} 23... Nd7 {[%clk
0:01:18.5]} 24. Bd2 {[%clk 0:01:16.5]} 24... bxc4 {[%clk 0:01:18.8]} 25. bxc4
{[%clk 0:01:16.6]} 25... Qc6 {[%clk 0:01:12.2]} 26. Qe2 {[%clk 0:01:04.7]} 26...
Rb8 {[%clk 0:00:54.5]} 27. e5 {[%clk 0:01:02.7]} 27... Be7 {[%clk 0:00:50.4]}
28. h4 {[%clk 0:00:51.1]} 28... Rb7 {[%clk 0:00:43.7]} 29. h5 {[%clk 0:00:48.9]}
29... Rfb8 {[%clk 0:00:39.6]} 30. Rac1 {[%clk 0:00:37.8]} 30... Qa4 {[%clk
0:00:30.9]} 31. Be1 {[%clk 0:00:30.6]} 31... Nb6 {[%clk 0:00:24.8]} 32. Qg4
{[%clk 0:00:28.5]} 32... Qd7 {[%clk 0:00:19.4]} 33. Bd2 {[%clk 0:00:18.4]} 33...
Na4 {[%clk 0:00:19.1]} 34. f5 {[%clk 0:00:17.2]} 34... exf5 {[%clk 0:00:18.5]}
35. Rxf5 {[%clk 0:00:18.1]} 35... Nb2 {[%clk 0:00:14]} 36. Nxb2 {[%clk
0:00:17.6]} 36... Rxb2 {[%clk 0:00:14.1]} 37. Rf8+ {[%clk 0:00:18.2]} 37... Bxf8
{[%clk 0:00:12.6]} 38. Qxd7 {[%clk 0:00:19.1]} 38... Rxd2 {[%clk 0:00:12.9]} 39.
e6 {[%clk 0:00:18.9]} 39... Re2 {[%clk 0:00:10.6]} 40. Rf1 {[%clk 0:00:19.3]}
40... Kh8 {[%clk 0:00:07]} 41. Qc7 {[%clk 0:00:12.7]} 41... Ra8 {[%clk
0:00:07.2]} 42. Qb7 {[%clk 0:00:11.8]} 42... Rd8 {[%clk 0:00:07.3]} 43. Qf3
{[%clk 0:00:11.2]} 1-0

[Event "Late-Titled-Tuesday-Blitz-June-25-2024"]
[Site "Chess.com"]
[Date "2024.06.25"]
[Round "11"]
[White "Oleksandr_Bortnyk"]
[Black "tptagain"]
[Result "0-1"]
[WhiteElo "3064"]
[BlackElo "3049"]
[TimeControl "180+1"]
[EndTime "16:07:02 PDT"]
[Termination "tptagain won by resignation"]

1. e4 {[%clk 0:03:00.9]} 1... c6 {[%clk 0:03:00]} 2. d4 {[%clk 0:02:59]} 2... d5
{[%clk 0:03:00.5]} 3. Nc3 {[%clk 0:02:59.9]} 3... dxe4 {[%clk 0:02:58.7]} 4.
Nxe4 {[%clk 0:03:00.8]} 4... Nf6 {[%clk 0:02:58.9]} 5. Nxf6+ {[%clk 0:03:01.2]}
5... exf6 {[%clk 0:02:59.5]} 6. c3 {[%clk 0:03:02.1]} 6... Bd6 {[%clk
0:02:57.7]} 7. Bd3 {[%clk 0:03:02.7]} 7... O-O {[%clk 0:02:56.3]} 8. Qc2 {[%clk
0:03:03.1]} 8... g6 {[%clk 0:02:56.1]} 9. Ne2 {[%clk 0:03:02.1]} 9... Na6 {[%clk
0:02:35.2]} 10. h4 {[%clk 0:02:59.1]} 10... h5 {[%clk 0:02:35.5]} 11. Bxg6
{[%clk 0:02:55.7]} 11... fxg6 {[%clk 0:02:36]} 12. Qxg6+ {[%clk 0:02:56.1]}
12... Kh8 {[%clk 0:02:36.6]} 13. Qxh5+ {[%clk 0:02:56.3]} 13... Kg8 {[%clk
0:02:34.7]} 14. Qg6+ {[%clk 0:02:30.7]} 14... Kh8 {[%clk 0:02:34.4]} 15. Qh6+
{[%clk 0:01:49.1]} 15... Kg8 {[%clk 0:02:34.1]} 16. Bf4 {[%clk 0:01:45.8]} 16...
Rf7 {[%clk 0:02:18.7]} 17. Bxd6 {[%clk 0:01:36]} 17... Qxd6 {[%clk 0:02:19.6]}
18. O-O-O {[%clk 0:01:31]} 18... Nc7 {[%clk 0:02:08.8]} 19. Ng3 {[%clk
0:01:28.1]} 19... Bg4 {[%clk 0:01:56.5]} 20. Rde1 {[%clk 0:01:20.9]} 20... Rh7
{[%clk 0:01:39.5]} 21. Qg6+ {[%clk 0:01:11.4]} 21... Rg7 {[%clk 0:01:39.6]} 22.
Qh6 {[%clk 0:01:12.1]} 22... Nd5 {[%clk 0:01:21.7]} 23. Re4 {[%clk 0:01:09]}
23... Qf8 {[%clk 0:00:33.4]} 24. Rhe1 {[%clk 0:01:08.9]} 24... f5 {[%clk
0:00:30.8]} 25. Re5 {[%clk 0:01:08.7]} 25... Qf6 {[%clk 0:00:21.6]} 26. Re8+
{[%clk 0:00:55.4]} 26... Rxe8 {[%clk 0:00:21]} 27. Rxe8+ {[%clk 0:00:56.3]}
27... Kf7 {[%clk 0:00:21.3]} 28. Qh8 {[%clk 0:00:57]} 28... Qd6 {[%clk
0:00:10.2]} 29. Re5 {[%clk 0:00:43]} 29... Nf6 {[%clk 0:00:09.5]} 30. f3 {[%clk
0:00:29]} 30... Rg8 {[%clk 0:00:07.1]} 31. Qh6 {[%clk 0:00:28.9]} 31... Rg6
{[%clk 0:00:06.5]} 32. Qd2 {[%clk 0:00:21.6]} 32... Bh3 {[%clk 0:00:03.8]} 33.
Qf4 {[%clk 0:00:15.1]} 33... Nd5 {[%clk 0:00:01.9]} 34. Qd2 {[%clk 0:00:03.9]}
34... Rxg3 {[%clk 0:00:01.8]} 35. gxh3 {[%clk 0:00:04.8]} 35... Qf6 {[%clk
0:00:01.7]} 36. c4 {[%clk 0:00:02.6]} 36... Ne7 {[%clk 0:00:01.6]} 37. h5 {[%clk
0:00:02.5]} 37... Rxf3 {[%clk 0:00:02]} 38. Qg2 {[%clk 0:00:01.3]} 38... Rf4
{[%clk 0:00:01.9]} 39. h6 {[%clk 0:00:01.4]} 39... Rxd4 {[%clk 0:00:02]} 40.
Rxe7+ {[%clk 0:00:01.3]} 40... Kxe7 {[%clk 0:00:02]} 41. h7 {[%clk 0:00:01]}
41... Rd8 {[%clk 0:00:02]} 42. Qe2+ {[%clk 0:00:01.3]} 42... Kf7 {[%clk
0:00:02.3]} 43. Qh5+ {[%clk 0:00:02.2]} 43... Kg7 {[%clk 0:00:02.3]} 44. h8=Q+
{[%clk 0:00:03.1]} 44... Rxh8 {[%clk 0:00:01.8]} 45. Qe2 {[%clk 0:00:04]} 45...
Kf7 {[%clk 0:00:02.3]} 46. Kc2 {[%clk 0:00:04.6]} 46... Re8 {[%clk 0:00:02.9]}
47. c5 {[%clk 0:00:05.5]} 47... Rxe2+ {[%clk 0:00:02.9]} 0-1

[Event "Late-Titled-Tuesday-Blitz-June-25-2024"]
[Site "Chess.com"]
[Date "2024.06.25"]
[Round "11"]
[White "patzer-reloaded"]
[Black "MoldyTofu"]
[Result "1-0"]
[WhiteElo "2412"]
[BlackElo "2064"]
[TimeControl "180+1"]
[EndTime "16:07:02 PDT"]
[Termination "patzer-reloaded won by resignation"]

1. d4 {[%clk 0:03:00.9]} 1... e6 {[%clk 0:03:00.9]} 2. e4 {[%clk 0:02:59.2]}
2... d5 {[%clk 0:03:01.8]} 3. Nd2 {[%clk 0:02:59.3]} 3... Nf6 {[%clk 0:03:02.7]}
4. Bd3 {[%clk 0:02:57.4]} 4... dxe4 {[%clk 0:03:02.9]} 5. Nxe4 {[%clk 0:02:57]}
5... Nxe4 {[%clk 0:03:01.9]} 6. Bxe4 {[%clk 0:02:56.7]} 6... Be7 {[%clk
0:03:02.8]} 7. Nf3 {[%clk 0:02:56.2]} 7... Nc6 {[%clk 0:03:01.6]} 8. c3 {[%clk
0:02:55.2]} 8... O-O {[%clk 0:03:01.1]} 9. h4 {[%clk 0:02:54.4]} 9... Bd7 {[%clk
0:03:01.3]} 10. h5 {[%clk 0:02:51.9]} 10... h6 {[%clk 0:03:00.7]} 11. Bc2 {[%clk
0:02:49.4]} 11... f5 {[%clk 0:02:58.9]} 12. Qe2 {[%clk 0:02:47.6]} 12... Bf6
{[%clk 0:02:57.9]} 13. Bf4 {[%clk 0:02:46.6]} 13... a6 {[%clk 0:02:55.3]} 14.
O-O-O {[%clk 0:02:43.9]} 14... b5 {[%clk 0:02:55.5]} 15. Rhe1 {[%clk 0:02:05.4]}
15... b4 {[%clk 0:02:52.1]} 16. c4 {[%clk 0:01:30.7]} 16... a5 {[%clk
0:02:38.3]} 17. Ne5 {[%clk 0:01:09.3]} 17... Nxe5 {[%clk 0:02:33.8]} 18. Bxe5
{[%clk 0:01:08.5]} 18... a4 {[%clk 0:02:31.9]} 19. d5 {[%clk 0:00:45.8]} 19...
exd5 {[%clk 0:02:24.7]} 20. Rxd5 {[%clk 0:00:42.3]} 20... c6 {[%clk 0:02:24.8]}
21. Rd6 {[%clk 0:00:40.8]} 21... Bxe5 {[%clk 0:02:16.2]} 22. Qxe5 {[%clk
0:00:29.9]} 22... Qc8 {[%clk 0:02:13.7]} 23. Qd4 {[%clk 0:00:26.4]} 23... Rf7
{[%clk 0:02:03.8]} 24. Rd1 {[%clk 0:00:24.5]} 24... c5 {[%clk 0:01:48.1]} 25.
Qd5 {[%clk 0:00:21]} 25... Ra7 {[%clk 0:01:46.6]} 26. Bxf5 {[%clk 0:00:17.1]}
26... Bxf5 {[%clk 0:01:37.8]} 27. Rd8+ {[%clk 0:00:15.9]} 27... Qxd8 {[%clk
0:01:38.5]} 28. Qxd8+ {[%clk 0:00:14.9]} 28... Kh7 {[%clk 0:01:39]} 29. Qb6
{[%clk 0:00:10.5]} 29... Rac7 {[%clk 0:01:32.5]} 30. g4 {[%clk 0:00:10.3]} 30...
Be4 {[%clk 0:01:28]} 31. f3 {[%clk 0:00:10.5]} 31... Bxf3 {[%clk 0:01:25.1]} 32.
Qg6+ {[%clk 0:00:08.9]} 32... Kg8 {[%clk 0:01:25.7]} 33. Rd8+ {[%clk 0:00:07.9]}
33... Rf8 {[%clk 0:01:26.2]} 34. Qe6+ {[%clk 0:00:06.2]} 34... Rf7 {[%clk
0:01:24.2]} 35. Rxf8+ {[%clk 0:00:05.9]} 35... Kxf8 {[%clk 0:01:25.1]} 36. Qc8+
{[%clk 0:00:05.8]} 36... Ke7 {[%clk 0:01:24.3]} 37. Qxc5+ {[%clk 0:00:06.7]}
37... Kf6 {[%clk 0:01:24.3]} 38. Qxb4 {[%clk 0:00:05.5]} 38... Bxg4 {[%clk
0:01:23.1]} 39. c5 {[%clk 0:00:04.9]} 39... Bxh5 {[%clk 0:01:22.1]} 40. c6
{[%clk 0:00:04.8]} 40... Bg4 {[%clk 0:01:22.6]} 41. Qd6+ {[%clk 0:00:04]} 41...
Kg5 {[%clk 0:01:21.5]} 42. c7 {[%clk 0:00:04.5]} 42... Rf1+ {[%clk 0:01:19.5]}
43. Kd2 {[%clk 0:00:04.1]} 43... Rf2+ {[%clk 0:01:19.7]} 44. Ke3 {[%clk
0:00:03.3]} 44... Rxb2 {[%clk 0:01:20]} 45. Qd8+ {[%clk 0:00:01.7]} 45... Kg6
{[%clk 0:01:19.3]} 46. c8=Q {[%clk 0:00:02.6]} 46... Bxc8 {[%clk 0:01:19.2]} 47.
Qxc8 {[%clk 0:00:03]} 47... a3 {[%clk 0:01:16.4]} 48. Qg4+ {[%clk 0:00:02.3]}
48... Kh7 {[%clk 0:01:16.5]} 49. Qc4 {[%clk 0:00:03.1]} 49... h5 {[%clk
0:01:15.1]} 50. Kf4 {[%clk 0:00:02.8]} 50... h4 {[%clk 0:01:14.2]} 51. Kg4
{[%clk 0:00:02.9]} 51... Rh2 {[%clk 0:01:13]} 52. Qe4+ {[%clk 0:00:02.4]} 52...
Kh8 {[%clk 0:01:12.5]} 53. Qe8+ {[%clk 0:00:02.4]} 53... Kh7 {[%clk 0:01:12.7]}
54. Qe4+ {[%clk 0:00:02.4]} 54... Kg8 {[%clk 0:01:13.2]} 55. Qd5+ {[%clk
0:00:03.1]} 55... Kh7 {[%clk 0:01:13.4]} 56. Kh5 {[%clk 0:00:03.5]} 56... h3
{[%clk 0:01:09]} 57. Qf5+ {[%clk 0:00:02.4]} 57... Kg8 {[%clk 0:01:09.1]} 58.
Qc8+ {[%clk 0:00:02.3]} 58... Kf7 {[%clk 0:01:09]} 59. Qf5+ {[%clk 0:00:02.2]}
59... Kg8 {[%clk 0:01:09.4]} 60. Qe5 {[%clk 0:00:01.5]} 60... Rg2 {[%clk
0:00:54.8]} 61. Qe8+ {[%clk 0:00:01]} 61... Kh7 {[%clk 0:00:55.3]} 62. Qe4+
{[%clk 0:00:01.1]} 62... g6+ {[%clk 0:00:53.7]} 63. Kh4 {[%clk 0:00:02]} 63...
h2 {[%clk 0:00:52.1]} 64. Qxg2 {[%clk 0:00:01.4]} 64... g5+ {[%clk 0:00:52.7]}
65. Kh3 {[%clk 0:00:01.1]} 65... Kg8 {[%clk 0:00:53.6]} 66. Qh1 {[%clk
0:00:01.3]} 66... Kf8 {[%clk 0:00:54.5]} 67. Kg2 {[%clk 0:00:01.6]} 67... Ke7
{[%clk 0:00:55.4]} 68. Qxh2 {[%clk 0:00:02.1]} 68... Kd7 {[%clk 0:00:56.3]} 69.
Qg3 {[%clk 0:00:02.8]} 69... Ke6 {[%clk 0:00:56.3]} 70. Qc3 {[%clk 0:00:03.7]}
70... Kd5 {[%clk 0:00:56.9]} 71. Qb3+ {[%clk 0:00:04.6]} 71... Ke4 {[%clk
0:00:57.5]} 72. Qxa3 {[%clk 0:00:05.5]} 72... Kf5 {[%clk 0:00:58.1]} 73. Qb3
{[%clk 0:00:06.4]} 73... g4 {[%clk 0:00:58.8]} 74. a4 {[%clk 0:00:07.3]} 74...
Kf4 {[%clk 0:00:59.5]} 75. Qb4+ {[%clk 0:00:08.1]} 1-0